Cogmind - Beta 17 @@@ ROGUE MODE // 2026.07.07 @ 03:01:04 Player: kite Result: Destroyed by P-60 Hacker with Shock Rifle Performance ------------- Evolutions (2) 1000 Regions Visited (10) 2000 Robots Destroyed (124) 620 Value Destroyed (6013) 6013 Prototype IDs (25) 500 Alien Tech Used (0) 0 Bonus (1795) 1795 TOTAL SCORE: 11928 Bonus ------- High Alert Combat Kills 825 Follower Combat Kills 70 Entered Garrisons 600 Aligned with FarCom 300 Cogmind --------- Core Integrity 0/550 Matter 120/300 Energy 122/125 System Corruption 7% Temperature Cool (0) Movement Treading (145) Location -8/Garrison Parts ------- > --- POWER (1) -------- Light Ion Engine > --- PROPULSION (4) --- Advanced Treads Advanced Treads Advanced Treads Advanced Treads > --- UTILITY (3) ------ Advanced Heat Sink Large Storage Unit Hardened Light Armor Plating > --- WEAPON (3) ------- Heavy Particle Gun Heavy Particle Gun Mini Grenade Launcher > --- INVENTORY (15) --- Improved Heat Sink Melee Analysis Suite Target Analyzer Field Lobotomy Kit (5) Heavy Hammer Heavy Hammer Heavy Hammer Heavy Hammer Peak State ------------ > --- POWER ------------ Nuclear Core > --- PROPULSION ------- Advanced Treads Advanced Treads Advanced Treads Advanced Treads > --- UTILITY ---------- Advanced Heat Sink Large Storage Unit Core Analyzer > --- WEAPON ----------- Heavy Particle Gun Heavy Particle Gun Heavy Particle Gun > --- INVENTORY -------- Advanced Treads Advanced Treads Advanced Treads Melee Analysis Suite Hardened Light Armor Plating Heavy Particle Gun Mini Grenade Launcher Field Lobotomy Kit Heavy Hammer Heavy Hammer Heavy Hammer Heavy Hammer [Rating: 40] Favorites ----------- Power Ion Engine Engine Ion Engine Power Core Fission Core Propulsion Light Treads Treads Light Treads Leg Aluminum Leg Utility Large Storage Unit Device Advanced Heat Sink Storage Large Storage Unit Processor Core Analyzer Hackware System Shield Protection Hardened Light Armor Plating Weapon Heavy Particle Gun Energy Gun Heavy Particle Gun Ballistic Gun Light Assault Rifle Launcher Mini Grenade Launcher Impact Weapon Heavy Hammer Build | -11 -10 -10 -10 -9 -8 -8 -8 -8 -8 -8 ------- Run | Yrd Mat Min Exi Min Mat Gar Mat Gar Mat Gar Slots Evolved 4 | . . . . . 4 . . . . . Power . | . . . . . . . . . . . Propulsion 2 | . . . . . 2 . . . . . Utility 1 | . . . . . 1 . . . . . Weapon 1 | . . . . . 1 . . . . . Parts Attached 86 | 6 6 . . . 10 10 18 11 16 9 Power 12 | 1 1 . . . 1 1 1 2 3 2 Engine 7 | 1 1 . . . 1 . 1 . 1 2 Core 5 | . . . . . . 1 . 2 2 . Reactor . | . . . . . . . . . . . Propulsion 33 | 2 . . . . 3 6 6 5 8 3 Treads 14 | 2 . . . . 3 2 . . 4 3 Leg 19 | . . . . . . 4 6 5 4 . Wheel . | . . . . . . . . . . . Hover . | . . . . . . . . . . . Flight . | . . . . . . . . . . . Utility 15 | 1 2 . . . 2 3 4 . 2 1 Device 7 | . 1 . . . 1 3 1 . 1 . Storage 4 | 1 1 . . . . . 1 . 1 . Processor 1 | . . . . . . . 1 . . . Hackware 1 | . . . . . . . 1 . . . Protection 2 | . . . . . 1 . . . . 1 Artifact . | . . . . . . . . . . . Weapon 26 | 2 3 . . . 4 . 7 4 3 3 Energy Gun 21 | . 3 . . . 4 . 7 2 3 2 Energy Cannon . | . . . . . . . . . . . Ballistic Gun 2 | 2 . . . . . . . . . . Ballistic Cannon . | . . . . . . . . . . . Launcher 2 | . . . . . . . . 1 . 1 Special Weapon . | . . . . . . . . . . . Impact Weapon 1 | . . . . . . . . 1 . . Slashing Weapon . | . . . . . . . . . . . Piercing Weapon . | . . . . . . . . . . . Special Melee Weapon . | . . . . . . . . . . . Unidentified Prototypes 2 | . . . . . 1 . 1 . . . Parts Lost 24 | . 2 . . . . 3 3 9 3 4 Power 6 | . 1 . . . . . 1 1 2 1 Propulsion 10 | . . . . . . 2 1 6 . 1 Utility 1 | . . . . . . 1 . . . . Weapon 7 | . 1 . . . . . 1 2 1 2 Highest Loss Streak 3 | . 2 . . . . 3 1 3 3 2 To Critical Strikes . | . . . . . . . . . . . Average Backups 13 | 1 10 12 12 14 13 14 14 13 14 10 Power . | . . . . . . 1 . . . . Propulsion 2 | . 3 4 4 4 2 1 3 2 3 2 Utility 1 | . . . . . 1 1 1 2 2 1 Weapon 7 | . 6 8 8 8 8 9 7 6 7 5 Tool/Special . | . . . . . . . . . . . Unused Backups 47 | . 1 . . . 9 6 13 2 9 7 Power 1 | . . . . . . . . . 1 . Propulsion 10 | . . . . . 2 1 2 . 5 . Utility 12 | . . . . . 4 1 1 2 1 3 Weapon 23 | . 1 . . . 3 4 10 . 2 3 Tool/Special 1 | . . . . . . . . . . 1 Average Slot Usage (%) 98 | . 96 100 100 100 99 99 99 99 97 86 Engine 6 | . 14 14 14 14 9 . 6 1 . 3 Core 4 | . . . . . . 8 2 7 8 2 Treads 17 | . 28 28 28 28 35 28 . . 5 30 Leg 15 | . . . . . . 7 36 35 30 . Device 11 | . 10 14 14 14 10 17 9 9 8 9 Storage 10 | . 14 14 14 14 9 9 9 9 9 9 Processor 3 | . . . . . . . 8 9 9 . Energy Gun 25 | . 21 28 28 28 27 27 26 26 26 22 Peak Build Rating 40 | 6 10 10 11 11 30 36 35 35 38 40 Average Rating 25 | 5 9 10 10 11 21 33 33 31 31 32 On Entrance 19 | . 6 10 10 11 11 30 34 35 29 37 Avg Prop Armor Cover (%) 8 | . . . . . . . . . 8 . Naked Turns . | . . . . . . . . . . . Heaviest Build 45 | 12 30 30 30 30 45 41 41 40 38 42 Greatest Support 88 | 40 40 40 40 40 80 80 50 50 88 88 Greatest Overweight (x) 1 | . . . . . . 1 1 1 1 . Average Overweight (x) . | . . . . . . . . . . . Largest Inventory Capacity 15 | 8 15 15 15 15 15 15 15 15 15 15 Average Capacity 14 | 7 14 15 15 15 15 15 15 15 15 15 Most Carried 15 | 4 14 12 13 15 15 15 15 15 15 13 Average Carried 13 | 2 11 12 12 14 13 14 14 13 14 10 Final Capacity 15 | 8 15 15 15 15 15 15 15 15 15 15 Final Carried 15 | 4 12 12 13 15 14 15 14 15 13 8 Class Distribution -------------------- 61% | Scavenger-Skirmisher 29% | Mutant 7% | Skirmisher Dominant Class ---------------- Mutant | -10/Materials Mutant | -10/Mines Mutant | -10/Exiles Mutant | -9/Mines Skirmisher | -8/Materials Scavenger-Skirmisher | -8/Garrison Scavenger-Skirmisher | -8/Materials Scavenger-Skirmisher | -8/Garrison Scavenger-Skirmisher | -8/Materials Skirmisher | -8/Garrison Resources | -11 -10 -10 -10 -9 -8 -8 -8 -8 -8 -8 ----------- Run | Yrd Mat Min Exi Min Mat Gar Mat Gar Mat Gar Matter Collected 1368 | 146 188 . . 18 100 115 234 301 157 109 Remotely . | . . . . . . . . . . . Salvage Created 4832 | . 494 . . . 230 922 1454 920 568 244 Parts 245 | . 22 . . . 7 31 73 56 31 25 Haulers Intercepted 7 | . 1 . . . 1 . 4 . 1 . Recyclers Shooed 1 | . . . . . . . . . 1 . Parts Field Recycled . | . . . . . . . . . . . Retrieved Matter . | . . . . . . . . . . . Parts Self-Destructed . | . . . . . . . . . . . Prevented . | . . . . . . . . . . . Parts Restored . | . . . . . . . . . . . Kills | -11 -10 -10 -10 -9 -8 -8 -8 -8 -8 -8 ------- Run | Yrd Mat Min Exi Min Mat Gar Mat Gar Mat Gar Combat Hostiles Destroyed 101 | . 9 . . . 3 22 20 26 9 12 Melee 1 | . . . . . . . . . . 1 Guns 86 | . 9 . . . 3 22 18 19 9 6 AOE 11 | . . . . . . . . 6 . 5 Classes Destroyed 16 | . 3 . . 1 . 4 3 5 . . Worker 4 | . . . . . . . 3 . 1 . Builder 5 | . . . . 1 1 . 1 . 2 . Hauler 7 | . 1 . . . 1 . 4 . 1 . Recycler 3 | . . . . . . . 2 . 1 . Mechanic 1 | . . . . . . . 1 . . . Operator 1 | . 1 . . . . . . . . . Watcher 2 | . . . . . . 1 1 . . . Swarmer 22 | . . . . . . 7 2 7 3 3 Cutter 4 | . . . . . . . . 1 . 3 Grunt 47 | . 9 . . . 3 11 7 11 3 3 Brawler 1 | . . . . . . . . 1 . . Duelist 3 | . . . . . . . . 2 1 . Sentry 15 | . . . . . . 3 10 1 1 . Specialist 1 | . . . . . . . . 1 . . Hunter 3 | . . . . . . 1 1 . 1 . Programmer 5 | . . . . . . . . 2 . 3 Best Kill Streak 6 | . 3 . . 1 2 6 6 5 4 6 Combat Bots Only 6 | . 3 . . . 2 6 3 5 4 6 Max Kills in Single Turn 2 | . 1 . . 1 2 2 2 2 2 1 Gunslinging 1 | . . . . . . 1 . . . . Exploded 2 | . . . . . . . . 2 . 1 Melee 1 | . . . . . . . . . . 1 Uniques/NPCs Destroyed . | . . . . . . . . . . . Combat | -11 -10 -10 -10 -9 -8 -8 -8 -8 -8 -8 -------- Run | Yrd Mat Min Exi Min Mat Gar Mat Gar Mat Gar Hostile Shots Fired 485 | . 55 . . . 4 120 67 90 79 70 Missed 142 | . 21 . . . . 36 23 27 19 16 Hits 343 | . 34 . . . 4 84 44 63 60 54 Melee 17 | . . . . . . . . 4 1 12 Projectile 326 | . 34 . . . 4 84 44 59 59 42 AOE 1 | . . . . . . . . 1 . . Critical Strikes 19 | . . . . . . 3 4 4 . 8 Damage Taken 5368 | . 465 . . . 67 1077 677 1018 1204 860 Core 638 | . 82 . . . . 77 66 105 215 93 Absorbed by Shields . | . . . . . . . . . . . Regen/Repaired (Parts) 82 | . . . . . . . 41 . 41 . Core Remaining (%) 83 | 100 . . . 67 . . . . . . Volleys Fired 357 | . 51 . . . 9 93 62 78 28 36 Largest 3 | . 2 . . . 3 3 3 3 3 3 Hottest 193 | . 80 . . . 165 165 193 175 169 165 Shots Fired 906 | . 100 . . . 25 263 177 204 79 58 Gun 888 | . 100 . . . 25 263 177 193 79 51 Cannon . | . . . . . . . . . . . Launcher 18 | . . . . . . . . 11 . 7 Special . | . . . . . . . . . . . Kinetic 46 | . 46 . . . . . . . . . Thermal 732 | . . . . . 12 263 177 158 71 51 Explosive 18 | . . . . . . . . 11 . 7 Electromagnetic 110 | . 54 . . . 13 . . 35 8 . Robot Hit Streak 15 | . 12 . . . 5 15 13 8 8 8 Robot Miss Streak 11 | . 9 . . . 3 11 6 4 3 3 Penetration Max . | . . . . . . . . . . . Secondary Targets 17 | . 1 . . . . 6 1 7 2 . Max Gunslinging Chain 2 | . 1 . . . . 2 1 1 1 . Shots Hit Robots 464 | . 55 . . . 14 103 125 88 42 37 Core Hits 246 | . 26 . . 1 9 40 80 50 22 18 Critical Kills . | . . . . . . . . . . . Critical Parts Destroyed . | . . . . . . . . . . . Critical Strikes 20 | . . . . . . 4 8 3 4 1 Burn 20 | . . . . . . 4 8 3 4 1 Melee Attacks 6 | . . . . . . . . 6 . . Impact 6 | . . . . . . . . 6 . . Slashing . | . . . . . . . . . . . Piercing . | . . . . . . . . . . . Sneak Attacks . | . . . . . . . . . . . Combat Hostiles . | . . . . . . . . . . . Follow-up Attacks . | . . . . . . . . . . . Damage Inflicted 9286 | . 604 . . 21 273 1980 2076 2207 814 1311 Guns 7897 | . 604 . . . 212 1980 2076 1450 814 761 Cannons . | . . . . . . . . . . . Explosions 1367 | . . . . . 61 . . 757 . 549 Melee . | . . . . . . . . . . . Ramming 22 | . . . . 21 . . . . . 1 Kinetic 260 | . 260 . . . . . . . . . Thermal 6969 | . . . . . 159 1980 2076 1239 754 761 Explosive 1306 | . . . . . . . . 757 . 549 Electromagnetic 729 | . 344 . . . 114 . . 211 60 . Impact . | . . . . . . . . . . . Slashing . | . . . . . . . . . . . Piercing . | . . . . . . . . . . . Highest Corruption 7 | . . . . . . 1 5 5 5 7 Average Corruption 4 | . . . . . . 1 5 5 5 6 Corruption Purged 1 | . . . . . . 1 . . . . Corruption Blocked . | . . . . . . . . . . . Effects 73 | . . . . . . 1 13 33 16 10 Message Errors 13 | . . . . . . . 1 8 2 2 Matter Fused 16 | . . . . . . . 5 2 4 5 Heat Flow Errors 9 | . . . . . . . 1 4 2 2 Energy Discharges 10 | . . . . . . . 4 5 . 1 Parts Fused 2 | . . . . . . . . . 2 . Data Loss (minor) 9 | . . . . . . . . 6 3 . Data Loss (major) 5 | . . . . . . 1 . 3 1 . Misfires 2 | . . . . . . . . 2 . . Weapon Failures 7 | . . . . . . . 2 3 2 . Overload Shots . | . . . . . . . . . . . Overflow Damage 6 | . . . . . . . . 6 . . Projectiles . | . . . . . . . . . . . Explosions 6 | . . . . . . . . 6 . . Melee . | . . . . . . . . . . . Knockbacks . | . . . . . . . . . . . Impact . | . . . . . . . . . . . Kinetic . | . . . . . . . . . . . Secondary . | . . . . . . . . . . . Self-Inflicted Damage 85 | . . . . . . . . 46 . 39 Shots 3 | . . . . . . . . 2 . 1 Rammed 4 | . 1 . . 3 . . . . . . Targets Rammed 6 | . 1 . . 4 . . . . . 1 Kicked . | . . . . . . . . . . . Crushed 2 | . . . . 1 . . . . . 1 Highest Temperature 354 | . 15 . . . 234 165 212 228 213 354 Average Temperature 61 | . 5 . . . 71 43 58 64 54 145 Received Heat Transfer 1725 | . 267 . . . 36 405 297 279 360 81 Effects 2 | . . . . . . . . . . 2 Shutdowns 1 | . . . . . . . . . . 1 Interference 1 | . . . . . . . . . . 1 Siege Activations . | . . . . . . . . . . . Martial Activations . | . . . . . . . . . . . Shielding Activations . | . . . . . . . . . . . Robots Disrupted . | . . . . . . . . . . . Combat Hostiles . | . . . . . . . . . . . Robots Corrupted . | . . . . . . . . . . . Combat Hostiles . | . . . . . . . . . . . Parts Fried 3 | . 3 . . . . . . . . . Impact Corruptions . | . . . . . . . . . . . Robots Melted 4 | . . . . . . . 3 1 . . Combat Hostiles 3 | . . . . . . . 2 1 . . Parts Melted 43 | . . . . . 4 10 14 10 5 . Heat Transferred 15010 | . . . . . 285 4181 4663 2773 1776 1332 Parts Sabotaged . | . . . . . . . . . . . Parts Stolen . | . . . . . . . . . . . Parts Stripped . | . . . . . . . . . . . Power Chain Reactions 1 | . . . . . 1 . . . . . Alert | -11 -10 -10 -10 -9 -8 -8 -8 -8 -8 -8 ------- Run | Yrd Mat Min Exi Min Mat Gar Mat Gar Mat Gar Maximum Alert Level 4 | . . . . . . 3 2 4 3 2 Low Security (%) 33 | 100 100 100 . 100 100 20 . . . . Level 1 13 | . . . . . . 26 35 6 . 4 Level 2 33 | . . . . . . 20 64 25 98 95 Level 3 16 | . . . . . . 33 . 48 1 . Level 4 3 | . . . . . . . . 19 . . Level 5 . | . . . . . . . . . . . High Security . | . . . . . . . . . . . Max Security . | . . . . . . . . . . . Peak Influence 1289 | . 100 6 . 5 81 990 536 1289 706 689 Initial 627 | . . 6 . . . 6 482 344 627 408 Average 409 | . 24 1 . . 18 478 408 855 600 522 Influence Increases 3799 | . 292 . . 5 153 1014 686 1035 293 321 Destroy 0b10 Robot/C 2060 | . 180 . . . 100 440 400 520 180 240 Destroy 0b10 Robot/NC 115 | . 10 . . 5 10 5 60 . 25 . Destroy Leader 366 | . 52 . . . 22 40 160 30 42 20 Allied During Kill 11 | . . . . . 11 . . . . . Successful Hack 39 | . 20 . . . 5 14 . . . . Disable Machine 75 | . . . . . . 30 30 . 15 . Anti-Garrison Action 650 | . . . . . . 400 . 250 . . Destroy Structure 258 | . . . . . 5 40 6 175 1 31 Lose Combat Pursuer 225 | . 30 . . . . 45 30 60 30 30 Influence Decreases 3110 | . 276 16 . 5 143 34 1146 276 954 260 Entered New Map 1590 | . . 10 . . . 4 508 186 662 220 Time Decay 1092 | . 266 6 . 5 95 . 458 . 262 . Lost Part 230 | . 10 . . . . 30 30 90 30 40 Lost Ally 48 | . . . . . 48 . . . . . Purge Threat 150 | . . . . . . . 150 . . . Squads Dispatched 9 | . 1 . . . 4 . 3 . 1 . Investigation 2 | . . . . . 2 . . . . . Extermination . | . . . . . . . . . . . Reinforcement 4 | . 1 . . . 1 . 1 . 1 . Assault . | . . . . . . . . . . . Garrison 3 | . . . . . 1 . 2 . . . Intercept . | . . . . . . . . . . . Searches Triggered . | . . . . . . . . . . . Construction Impeded . | . . . . . . . . . . . Haulers Reinforced . | . . . . . . . . . . . Active Scanning Responses . | . . . . . . . . . . . Cargo Convoy Interrupts . | . . . . . . . . . . . Stealth | -11 -10 -10 -10 -9 -8 -8 -8 -8 -8 -8 --------- Run | Yrd Mat Min Exi Min Mat Gar Mat Gar Mat Gar Distress Signals 16 | . 3 . . . 2 5 4 . 2 . Communications Jammed . | . . . . . . . . . . . Distress Signals . | . . . . . . . . . . . Times Spotted 141 | . 18 . . . 4 31 26 30 17 15 Peak Tracking Total 8 | . 5 . . . 3 7 4 5 8 6 Tactical Retreats 9 | . 1 . . . . 2 2 2 1 1 Traps | -11 -10 -10 -10 -9 -8 -8 -8 -8 -8 -8 ------- Run | Yrd Mat Min Exi Min Mat Gar Mat Gar Mat Gar Traps Triggered 6 | . . . . . 1 1 . 2 2 . Indirectly . | . . . . . . . . . . . Trap Hack Attempts . | . . . . . . . . . . . Triggered . | . . . . . . . . . . . Disarmed . | . . . . . . . . . . . Reprogrammed . | . . . . . . . . . . . Reused . | . . . . . . . . . . . Traps Extracted . | . . . . . . . . . . . Installed . | . . . . . . . . . . . Triggered . | . . . . . . . . . . . Machines | -11 -10 -10 -10 -9 -8 -8 -8 -8 -8 -8 ---------- Run | Yrd Mat Min Exi Min Mat Gar Mat Gar Mat Gar Machines Disabled 18 | . . . . . . 8 2 7 1 . Max in Single Turn 2 | . . . . . . 1 1 2 1 . Garrison Relay 8 | . . . . . . 5 . 3 . . Phase Generator 1 | . . . . . . . . 1 . . Machines Repaired . | . . . . . . . . . . . Machines Dismantled . | . . . . . . . . . . . Machines Sabotaged . | . . . . . . . . . . . Overloaded Fab Kills . | . . . . . . . . . . . Hacking | -11 -10 -10 -10 -9 -8 -8 -8 -8 -8 -8 --------- Run | Yrd Mat Min Exi Min Mat Gar Mat Gar Mat Gar Machines Accessed 18 | . 5 . 2 . 3 2 3 1 2 . Terminals 11 | . 5 . . . 2 2 1 1 . . Fabricators . | . . . . . . . . . . . Repair Stations 2 | . . . . . . . 1 . 1 . Recycling Units . | . . . . . . . . . . . Scanalyzers . | . . . . . . . . . . . Garrison Access 3 | . . . . . 1 . 1 . 1 . Total Hacks 47 | . 19 . 5 . 7 4 6 3 3 . Successful 25 | . 7 . 5 . 3 1 5 1 3 . Failed 22 | . 12 . . . 4 3 1 2 . . Catastrophic 4 | . 3 . . . . . . 1 . . Database Lockouts . | . . . . . . . . . . . Manual 24 | . 17 . 1 . 3 . 3 . . . Terminals 32 | . 19 . . . 3 4 3 3 . . Fabricators . | . . . . . . . . . . . Repair Stations 4 | . . . . . . . 2 . 2 . Recycling Units . | . . . . . . . . . . . Scanalyzers . | . . . . . . . . . . . Garrison Access 6 | . . . . . 4 . 1 . 1 . Terminal Hacks 11 | . 3 . 5 . . 1 1 1 . . Record 4 | . . . 4 . . . . . . . Part Schematic 2 | . 2 . . . . . . . . . Emergency Access Points 1 | . . . . . . 1 . . . . Unreport Threat 1 | . . . . . . . 1 . . . Hauler Manifests 1 | . 1 . . . . . . . . . Patrol Navigation 1 | . . . . . . . . 1 . . Proto ID Catalog 1 | . . . 1 . . . . . . . Fabricator Hacks . | . . . . . . . . . . . Repair Station Hacks 4 | . . . . . . . 2 . 2 . Scan Component 2 | . . . . . . . 1 . 1 . Repair 2 | . . . . . . . 1 . 1 . Recycling Unit Hacks . | . . . . . . . . . . . Scanalyzer . | . . . . . . . . . . . Garrison Access Hacks 3 | . . . . . 1 . 1 . 1 . Unlock Access 3 | . . . . . 1 . 1 . 1 . Unauthorized Hacks 7 | . 4 . . . 2 . 1 . . . Terminals 7 | . 4 . . . 2 . 1 . . . Botnet 7 | . 4 . . . 2 . 1 . . . Fabricators . | . . . . . . . . . . . Repair Stations . | . . . . . . . . . . . Recycling Units . | . . . . . . . . . . . Scanalyzers . | . . . . . . . . . . . Garrison Access . | . . . . . . . . . . . Data Cores Recovered 1 | . 1 . . . . . . . . . Used . | . . . . . . . . . . . Hacking Detections 13 | . 5 . . . 2 2 2 1 1 . Full Trace Events 3 | . 1 . . . 1 1 . . . . Feedback Events 1 | . . . . . 1 . . . . . Corruption 1 | . . . . . 1 . . . . . Feedback Blocked . | . . . . . . . . . . . Robot Schematics Acquired . | . . . . . . . . . . . Robots Built . | . . . . . . . . . . . Authchips . | . . . . . . . . . . . Time . | . . . . . . . . . . . Total Robot Build Rating . | . . . . . . . . . . . Part Schematics Acquired 2 | . 2 . . . . . . . . . Parts Built . | . . . . . . . . . . . Authchips . | . . . . . . . . . . . Time . | . . . . . . . . . . . Total Part Build Rating . | . . . . . . . . . . . Part Studies Acquired . | . . . . . . . . . . . Parts Repaired 2 | . . . . . . . 1 . 1 . Time 100 | . . . . . . . 50 . 50 . Parts Recycled . | . . . . . . . . . . . Recycled Matter . | . . . . . . . . . . . Retrieved Matter . | . . . . . . . . . . . Retrieved Components . | . . . . . . . . . . . Parts Scanalyzed . | . . . . . . . . . . . Part Schematics Acquired . | . . . . . . . . . . . Parts Damaged . | . . . . . . . . . . . Bothacking | -11 -10 -10 -10 -9 -8 -8 -8 -8 -8 -8 ------------ Run | Yrd Mat Min Exi Min Mat Gar Mat Gar Mat Gar Used RIF Installer . | . . . . . . . . . . . Robots Hacked . | . . . . . . . . . . . Non-combat . | . . . . . . . . . . . Combat . | . . . . . . . . . . . Robot Hacks Applied . | . . . . . . . . . . . Relay Couplers Released 33 | . . . . . . 20 . 13 . . Machine Destruction 33 | . . . . . . 20 . 13 . . Fabnet Peak Effective % . | . . . . . . . . . . . Robots Rewired . | . . . . . . . . . . . Allies Hacked . | . . . . . . . . . . . Hacks Repelled . | . . . . . . . . . . . Allies | -11 -10 -10 -10 -9 -8 -8 -8 -8 -8 -8 -------- Run | Yrd Mat Min Exi Min Mat Gar Mat Gar Mat Gar Total Allies 4 | . . 1 . 3 . . . . . . Largest Group 3 | . . 1 1 3 3 . . . . . Highest-Rated Group 40 | . . 31 31 40 40 . . . . . Highest-Rated Ally 31 | . . 31 31 16 16 . . . . . Initial Warlord ECA Mod 16 | . . . . . . . 11 11 16 16 Total Orders . | . . . . . . . . . . . Ally Attacks 15 | . . . . . 15 . . . . . Total Damage 171 | . . . . . 171 . . . . . Kills 2 | . . . . . 2 . . . . . Allies Corrupted . | . . . . . . . . . . . Allies Melted . | . . . . . . . . . . . Intel | -11 -10 -10 -10 -9 -8 -8 -8 -8 -8 -8 ------- Run | Yrd Mat Min Exi Min Mat Gar Mat Gar Mat Gar Active Infowar (turns) . | . . . . . . . . . . . Robot Analysis Total . | . . . . . . . . . . . Derelict Logs Recovered 1 | . . 1 . . . . . . . . Drone Launches . | . . . . . . . . . . . Drone Recoveries . | . . . . . . . . . . . Exploration | -11 -10 -10 -10 -9 -8 -8 -8 -8 -8 -8 ------------- Run | Yrd Mat Min Exi Min Mat Gar Mat Gar Mat Gar Turns Passed 7039 | 86 884 66 377 522 380 1525 1149 1146 567 337 Spaces Moved 3582 | 48 433 42 236 303 200 681 606 657 260 116 Core 2 | 2 . . . . . . . . . . Treads 1971 | 46 433 42 236 303 200 561 . . 34 116 Legs 1609 | . . . . . . 120 606 657 226 . Wheels . | . . . . . . . . . . . Hover . | . . . . . . . . . . . Flight . | . . . . . . . . . . . Fastest Speed 50 | 50 160 160 160 160 160 160 120 120 120 145 Average Speed 144 | 155 160 160 160 160 160 165 123 120 123 145 Slowest Speed 190 | 160 160 160 160 160 160 190 190 190 190 145 Overloaded Moves . | . . . . . . . . . . . Propulsion Burnouts . | . . . . . . . . . . . Robots Hopped . | . . . . . . . . . . . Potential Cave-ins . | . . . . . . . . . . . Cave-ins Triggered . | . . . . . . . . . . . Exploration Rate (%) 45 | 4 74 7 60 76 26 85 58 63 27 16 Regions Visited 10 Branch Regions 3 Pre-discovered Areas 1 | . . . 1 . . . . . . . Known Exits Taken 3 | . . . . . 1 . 1 . 1 . Unknown Exits Taken 5 | 1 1 1 1 1 . . . . . . Scrap Searched 2 | . . . . 2 . . . . . . Spaces Dug 4 | . . . . . . . . 4 . . Terrain Destroyed 210 | . . . . . 4 . . 184 . 22 Melee 4 | . . . . . . . . 4 . . Projectile . | . . . . . . . . . . . AOE 206 | . . . . . 4 . . 180 . 22 Terrain Rammed . | . . . . . . . . . . . Walls Destroyed . | . . . . . . . . . . . Machines Disabled . | . . . . . . . . . . . Actions | -11 -10 -10 -10 -9 -8 -8 -8 -8 -8 -8 --------- Run | Yrd Mat Min Exi Min Mat Gar Mat Gar Mat Gar Total 4735 | 57 533 41 236 338 247 884 880 837 455 227 Wait 483 | . 28 . . 30 . 60 136 61 114 54 Move 3575 | 47 432 41 235 302 200 680 606 656 260 116 Hop . | . . . . . . . . . . . Pick Up 90 | 4 11 . 1 2 13 16 20 8 10 5 Fast Attach 40 | 6 4 . . . 3 3 9 4 9 2 Attach 29 | . 2 . . . 5 5 2 5 1 9 Detach . | . . . . . . . . . . . Swap 40 | . . . . . 2 4 11 10 9 4 Drop 99 | . 4 . . . 15 18 34 4 24 . Fire 357 | . 51 . . . 9 93 62 78 28 36 Melee 6 | . . . . . . . . 6 . . Ram . | . . . . . . . . . . . Kick . | . . . . . . . . . . . Crush 6 | . 1 . . 4 . . . . . 1 Escape Stasis 10 | . . . . . . 5 . 5 . . Rewire . | . . . . . . . . . . . Trap . | . . . . . . . . . . . Miscellaneous . | . . . . . . . . . . . Route ------- -11/Scrapyard -10/Materials (discovered 4 exits: [*Mat x3] / [*Min]) -10/Mines -10/Exiles -9/Mines -8/Materials (discovered 4 exits: Fac x2 / [*Sto] / Gar) -8/Garrison (discovered 3 exits: *Mat x3) -8/Materials (discovered 3 exits: *Fac / [*Sto] / Gar) -8/Garrison (discovered 2 exits: *Mat x2) -8/Materials -8/Garrison History --------- Turn | Location | Event 31 | -11/Scrapyard | Discovered new exit (range 15) 87 | -11/Scrapyard | Entered Materials 282 | -10/Materials | Discovered new exit (range 12) 323 | -10/Materials | Build established: Mutant 595 | -10/Materials | Discovered new exit (range 15) 815 | -10/Materials | Discovered new exit (range 3) 950 | -10/Materials | Discovered new exit (range 14) 971 | -10/Materials | Entered Mines 974 | -10/Mines | Received a Mining Laser from a helpful Derelict 991 | -10/Mines | Deemed a non-threat by the Exiles lab entrance 991 | -10/Mines | Discovered new exit (range 5) 1008 | -10/Mines | Learned 4 Materials zone layouts 1037 | -10/Mines | Entered Exiles 1037 | -10/Exiles | Accompanied by 1 ally 1074 | -10/Exiles | Met 8R-AWN 1103 | -10/Exiles | Met EX-HEX 1148 | -10/Exiles | Met EX-BIN 1167 | -10/Exiles | Aligned with FarCom system 1169 | -10/Exiles | Given EX-Vault access code 1205 | -10/Exiles | Opened EX-Vault 1217 | -10/Exiles | Found Field Lobotomy Kit 1248 | -10/Exiles | Warned to stay clear of 0b10 Research branches 1298 | -10/Exiles | Met EX-DEC 1317 | -10/Exiles | Learned location of Zion (-7) 1394 | -10/Exiles | Discovered new exit (range 11) 1414 | -10/Exiles | Left Exiles lab with Field Lobotomy Kit 1414 | -10/Exiles | Entered Mines 1436 | -9/Mines | Received a Rocket Launcher from a helpful Derelict 1531 | -9/Mines | Assisted by bots powering up and referring to "LRC-V3" 1903 | -9/Mines | Discovered new exit (range 2) 1936 | -9/Mines | Entered Materials 1936 | -8/Materials | Accompanied by 3 allies 1936 | -8/Materials | Evolved 4 slots: Propulsion x2, Utility x1, Weapon x1 1937 | -8/Materials | Identified exit to Factory 2064 | -8/Materials | Discovered new exit (range 4) 2153 | -8/Materials | Met 7R-MNS 2226 | -8/Materials | Garrison activated, responded to threat 2232 | -8/Materials | Lost 3 allies 2316 | -8/Materials | Identified exit to Garrison 2316 | -8/Materials | Entered Garrison 2408 | -8/Garrison | Garrison Relay disabled 2488 | -8/Garrison | Build established: Scavenger-Skirmisher 2706 | -8/Garrison | Discovered new exit (range 9) 2932 | -8/Garrison | Garrison Relay disabled 3157 | -8/Garrison | Lost 3 parts (2n1u) 3327 | -8/Garrison | Discovered new exit (range 8) 3334 | -8/Garrison | Garrison Relay disabled 3415 | -8/Garrison | Garrison Relay disabled 3534 | -8/Garrison | Triggered checkpoint 3777 | -8/Garrison | Garrison Relay disabled 3822 | -8/Garrison | Discovered new exit (range 8) 3841 | -8/Garrison | Entered Materials 3841 | -8/Materials | Discovered new exit (range 10) 4531 | -8/Materials | Repaired Adv. Heat Sink 4652 | -8/Materials | Discovered exit to Factory (range 10) 4989 | -8/Materials | Identified exit to Garrison 4990 | -8/Materials | Entered Garrison 5024 | -8/Garrison | Triggered checkpoint 5045 | -8/Garrison | Triggered checkpoint 5068 | -8/Garrison | Garrison Relay disabled 5160 | -8/Garrison | Triggered checkpoint 5248 | -8/Garrison | Triggered checkpoint 5324 | -8/Garrison | Lost 3 parts (1n2w) 5414 | -8/Garrison | Triggered checkpoint 5438 | -8/Garrison | Triggered checkpoint 5561 | -8/Garrison | Discovered new exit (range 10) 5588 | -8/Garrison | Triggered checkpoint 5595 | -8/Garrison | Garrison Relay disabled 5792 | -8/Garrison | Phase Generator disabled 5917 | -8/Garrison | Discovered new exit (range 13) 6019 | -8/Garrison | Garrison Relay disabled 6030 | -8/Garrison | Triggered checkpoint 6136 | -8/Garrison | Entered Materials 6203 | -8/Materials | Repaired Adv. Heat Sink 6632 | -8/Materials | Core integrity fell below 50% 6694 | -8/Materials | Lost 3 parts (2p1w) 6697 | -8/Materials | Core integrity fell below 20% 6703 | -8/Materials | Identified exit to Garrison 6703 | -8/Materials | Entered Garrison 6769 | -8/Garrison | Triggered checkpoint 6903 | -8/Garrison | Triggered checkpoint 7040 | -8/Garrison | Destroyed by P-60 Hacker with Shock Rifle Last Messages --------------- 06916_ Destroyed Lgt. Nuclear Core. 06918_ G-47 Trooper destroyed. 06919_ The unstable cave ceiling collapses. 06922_ G-47 Trooper destroyed. 06923_ The unstable cave ceiling collapses. 06924_ Hrd. Light Armor Plating severed. 06927_ Mni. Grenade Launcher severed. 06931_ Destroyed Surge Thruster. 06933_ Adv. Treads severed. 06934_ C-17 Slicer destroyed. 06937_ KZO 06946_ Acquired Mni. Grenade Launcher. 06949_ The unstable cave ceiling collapses. 06949_ Acquired Hrd. Light Armor Plating. 06972_ System corrupted: Matter fused (-5). 06988_ The unstable cave ceiling collapses. 06991_ System corrupted: Matter fused (-9). 07000_ P-60 Hacker destroyed. 07004_ Acquired Imp. Heat Sink. 07010_ System corrupted: Matter fused (-6). Map ----- +----------------------------------------------------+ | ?????????????????????????????????????????????????? | | ?????????????????????????????????????????????????? | | ?????????????????????????????????????????????????? | | ?????????????????????????????????????????????????? | | ?????????????????????????????????????????????????? | | ?????????????????????????????????????????????????? | | ?????????????????????????????????????????????????? | | ?????????????????????????????????????????????????? | | ?????????????????????????????????????????????????? | | ?????????????????????????????????????????????????? | | ?????????????????????????????????????????????????? | | ?????????????????????????????????????????????????? | | ????????????????????????????????????? ??????????? | | ?????????????????????????????? ??? ??????????? | | ?????????????????????????????# ?? #?????????? | | ???????????????????????????### ## #?????????? | | ???????????????????????????? ????????? | | ???????????????????????????? ^?????????? | | ????????????????????????????? ??????????? | | ????????????????????????????? %= ???????????? | | ??????????????????????????#### # ???????????? | | ??????????????????????????# ## #?????????? | | ????????????????????????#### % g ??????? | | ????????????????????????# ??????? | | ???# ##############???#p## #p ??????? | | ^ !== [ #???#@#? ##""""#?????????? | | ?????######## ==###%#???# #??#=*] #ssss??????????? | | ????????????# |#?#=##### #####%% ##?????????????? | | ????????????#####?# " % / *=##?????????????? | | ??????????????????# ##### #### # #?????????????? | | ??????????????????# #???# #??## ###?????????????? | | ??????????????????# #???# #???# #???????????????? | | ???????????????####%########### #???????????????? | | ???????????????# =[ #???????????????? | | ???????????????# #???????????????? | | ???????????????# ################???????????????? | | ???????????????# #??????????????????????????????? | | ???????????????# #??????????????????????????????? | | ???????????????# #??????????????????????????????? | | ???????????????# #??????????????????????????????? | | ???????????????# #??????????????????????????????? | | ???????????????# #??????????????????????????????? | | ?????????????### #??????????????????????????????? | | ?????????????# #??????????????????????????????? | | ?????????????# #??????????????????????????????? | | ?????????????# #??????????????????????????????? | | ?????????????######??????????????????????????????? | | ?????????????????????????????????????????????????? | | ?????????????????????????????????????????????????? | | ?????????????????????????????????????????????????? | +----------------------------------------------------+ Best States ------------- Heat Dissipation 64 Energy Generation 18 Energy Capacity 310 Matter Stores 300 Matter Capacity 300 Sight Range 16 Terrain Scan Density 10 Armor Coverage 150 Evasion (%) 55 Core Analysis 6 Recoil Reduction 4 Item Schematics ----------------- Hcp. Storage Unit | -10/Materials | Hacked Huge Storage Unit | -10/Materials | Hacked Robot Schematics ------------------ None Fabricated ------------ Nothing Repaired ---------- Adv. Heat Sink | 18% | -8/Materials Adv. Heat Sink | 18% | -8/Materials Studied --------- None Alien Tech Used ----------------- None Achievements -------------- None Challenges ------------ None Game ------ Seed TowerPulsarWheel Manual? 0 Play Time 00:34:35 Cumulative 428.7 hours Start 2026.07.07 @ 01:58:06 End 2026.07.07 @ 03:01:04 Sessions 1 Manual Loads 0 Difficulty Rogue Special Mode None Game No. 392 Rogue 392 Adventurer 0 Explorer 0 Win Type - Total 11 Types 7/0/2/1/0/0/0/0/0/1 Lore% 61 Gallery% 68 Achievement% 64 Wizard Run 0 Options --------- Layout 1 ASCII 0 Keyboard 0 Movement Mouse Keybinds 0 Fullscreen 2 Font 24/Cog Map View 50x35 Zoom Use 9% Tactical HUD 1 Map Filters NONE Filters NONE Steam 1 RUN: d1ba97a3-3e9a-499d-bf11-263e339f5e78